bitfinex/quotes_ETHUSD_20260306
["timestamp","ask_amount","ask_price","bid_price","bid_amount"]
[1772815144523,0.49663398,1979.0,1978.1,0.15388718]
[1772815145450,0.49663398,1978.9,1978.1,1.4177114]
[1772815145747,1.065,1979.2,1978.1,1.4177114]
[1772815146048,1.75983442,1979.1,1978.1,1.86844638]
[1772815146252,0.49663398,1979.1,1978.1,1.86844638]
[1772815146421,0.49663398,1979.1,1978.1,1.4177114]
[1772815147324,1.75989257,1979.1,1978.1,1.86844638]
[1772815147520,1.065,1979.2,1978.2,0.45073498]
[1772815147959,2.82548762,1979.7,1978.3,0.45073498]
[1772815148828,2.82548587,1979.7,1978.3,0.45073498]
[1772815149039,0.49663398,1979.6,1978.3,0.45073498]
[1772815149629,1.75952276,1979.6,1978.5,0.45073498]
[1772815150130,0.49663398,1979.5,1978.5,0.45073498]
[1772815150534,0.49663398,1979.5,1978.4,1.26364739]
[1772815151641,1.26272912,1979.9,1978.4,0.45073498]
[1772815151935,1.26272912,1979.9,1978.3,5.05458956]
[1772815151936,0.49663398,1979.6,1978.3,5.50532454]
[1772815153561,0.49663398,1979.5,1978.4,0.45073498]
[1772815153761,1.75962751,1979.5,1978.5,0.45073498]
[1772815154059,1.75962751,1979.5,1978.4,1.26360234]
[1772815154060,0.49663398,1979.4,1978.4,1.26360234]
[1772815154433,0.49663398,1979.4,1978.4,1.71433732]
[1772815154950,0.49663398,1979.4,1978.5,0.0011]
[1772815155862,0.49663398,1979.2,1978.5,0.0011]
[1772815158163,0.49663398,1979.0,1978.1,1.41768648]
[1772815158456,0.49663398,1979.0,1978.1,1.86842146]
[1772815158642,0.49663398,1979.3,1978.1,1.86842146]
[1772815158831,0.49663398,1979.2,1978.1,1.86842146]
[1772815159032,0.49663398,1979.2,1978.1,1.41768648]
[1772815159633,0.49663398,1979.2,1978.1,1.86842146]
[1772815160637,1.75983442,1979.1,1978.1,1.86842146]
[1772815160837,1.75965395,1979.4,1978.2,0.45073498]
[1772815161430,1.75965395,1979.4,1978.1,1.41768648]
[1772815161431,0.49663398,1979.3,1978.1,1.41768648]
[1772815162365,0.49663398,1979.3,1978.1,1.86842146]
[1772815162573,1.26313662,1979.2,1978.2,0.45073498]
[1772815162869,1.26313662,1979.2,1978.1,1.41768648]
[1772815162870,0.49663398,1979.1,1978.1,1.41768648]
[1772815163938,0.49663398,1979.1,1978.1,1.41772059]
[1772815164556,1.26326427,1979.0,1978.1,1.41772059]
[1772815164733,1.068,1978.9,1978.1,1.86845557]
[1772815165871,0.49663398,1979.4,1978.2,0.45073498]
[1772815166781,1.75970678,1979.3,1978.3,1.26371126]
[1772815166936,0.49663398,1979.3,1978.3,1.71444624]
[1772815168173,0.49663398,1979.3,1978.2,1.26373784]
[1772815168585,0.49663398,1979.3,1978.2,1.26483784]
[1772815168879,0.49763398,1979.1,1978.2,0.0011]
[1772815169686,0.49663398,1978.9,1978.1,0.15388718]
[1772815169837,2.43575177,1979.0,1978.1,0.15388718]
[1772815169838,0.49663398,1978.7,1978.1,0.15388718]
[1772815170239,0.49663398,1978.7,1978.1,0.05508681]
[1772815170444,0.49663398,1978.7,1977.6,0.0011]
[1772815170445,0.49663398,1978.1,1977.6,0.0011]
[1772815170644,0.49663398,1978.0,1977.6,0.0011]
[1772815170868,1.26396683,1977.9,1977.6,0.0011]
[1772815172071,0.47276067,1977.8,1977.6,0.0011]
[1772815172254,0.47276067,1977.8,1976.8,1.26462351]
[1772815172439,0.47276067,1977.8,1976.7,1.40590797]
[1772815172866,0.47276067,1977.6,1976.7,1.40590797]
[1772815173067,1.068,1977.5,1976.7,1.40590797]
[1772815173256,1.068,1977.5,1976.8,0.49653059]
[1772815173864,1.54076067,1977.5,1976.7,1.40590797]
[1772815174173,0.47276067,1977.4,1976.7,1.40590797]
[1772815174741,1.068,1977.5,1976.7,1.40590797]
[1772815174959,0.47276067,1977.7,1976.7,1.90243856]
[1772815174960,1.068,1977.6,1976.7,1.90243856]
[1772815175769,1.068,1977.8,1976.8,0.49653059]
[1772815176371,1.068,1977.8,1976.9,0.49653059]
[1772815176879,1.54076067,1978.3,1977.1,0.49653059]
[1772815177079,0.47276067,1978.6,1977.1,0.49653059]
[1772815177657,0.47276067,1978.5,1977.1,0.49653059]
[1772815177857,0.47276067,1978.5,1977.2,1.37253059]
[1772815178062,0.47276067,1978.5,1977.3,0.49653059]
[1772815178880,1.73636425,1978.5,1977.4,1.76081702]
[1772815179076,4.08827043,1978.7,1977.5,0.49653059]
[1772815179579,4.5610311,1978.7,1977.5,0.49653059]
[1772815180048,4.56100766,1978.7,1977.5,0.49653059]
[1772815180486,2.584,1978.8,1977.5,0.49653059]
[1772815180671,4.32016445,1978.8,1977.5,0.49653059]
[1772815180869,1.26351966,1978.6,1977.6,1.26415857]
[1772815181069,0.47276067,1978.5,1977.6,1.26415857]
[1772815181583,1.26349469,1978.7,1977.6,1.76068916]
[1772815181798,0.47276067,1979.0,1977.7,0.49653059]
[1772815182756,0.001,1978.6,1977.7,0.49653059]
[1772815182958,0.001,1978.6,1977.9,0.49653059]
[1772815184465,1.069,1979.2,1978.0,0.49653059]
[1772815185243,0.47276067,1979.2,1978.2,0.49653059]
[1772815185362,0.47276067,1979.5,1978.2,0.49653059]
[1772815187108,1.73573729,1979.5,1978.3,1.76024185]
[1772815187274,2.95109378,1979.7,1978.4,0.49653059]
[1772815187485,0.47276067,1979.7,1978.4,0.49653059]
[1772815187793,1.73558792,1979.7,1978.4,0.49653059]
[1772815188501,0.47276067,1979.6,1978.4,0.49653059]
[1772815189092,0.47276067,1979.5,1978.5,1.26358352]
[1772815189912,0.47276067,1979.5,1978.1,0.49653059]
[1772815191276,0.47276067,1979.4,1978.3,0.49653059]
[1772815191894,0.47276067,1979.4,1978.2,1.26377514]
[1772815192204,0.47276067,1979.4,1978.1,1.26380284]
[1772815192604,0.47276067,1979.3,1978.1,1.26380284]
[1772815193018,0.47276067,1979.1,1978.1,1.26380284]
[1772815193712,0.47276067,1979.0,1978.0,0.49653059]
[1772815193912,7.65302815,1979.9,1978.0,0.49653059]
[1772815193913,0.47276067,1979.5,1978.0,0.49653059]
[1772815194227,1.73571745,1979.5,1978.2,0.49653059]
[1772815194926,0.47276067,1979.5,1978.2,0.49653059]
[1772815195396,1.73570846,1979.5,1978.2,0.49653059]
[1772815195596,1.73570846,1979.5,1978.4,0.45630989]
[1772815195798,1.73570846,1979.5,1978.4,0.45740989]
[1772815196215,0.48446916,1979.4,1978.4,0.0011]
[1772815196919,1.26294779,1979.5,1978.4,0.0011]
[1772815197120,0.48446916,1979.3,1978.4,0.0011]
[1772815197721,0.48446916,1979.3,1978.4,0.45740989]
[1772815198224,0.48446916,1979.5,1978.4,0.45740989]
[1772815198621,0.48446916,1979.5,1978.4,0.0011]
[1772815199820,0.48446916,1979.3,1978.4,0.0011]
[1772815200325,0.48446916,1979.3,1978.4,0.45740989]
[1772815200912,1.26299884,1979.5,1978.4,0.45740989]
[1772815201625,1.26299884,1979.5,1978.5,1.71422919]
[1772815202514,0.48909113,1979.4,1978.5,1.26358352]
[1772815202834,0.48909113,1979.0,1978.3,0.0011]
[1772815202994,0.48909113,1978.8,1978.3,0.0011]
[1772815203697,0.48909113,1979.2,1978.3,0.0011]
[1772815204098,1.75223144,1979.2,1978.3,0.0011]
[1772815204510,2.3260452,1979.4,1978.3,0.45174567]
[1772815204824,2.3260452,1979.4,1978.3,0.0011]
[1772815204825,0.48909113,1979.3,1978.3,0.0011]
[1772815205822,0.48909113,1979.1,1978.3,0.0011]
[1772815206607,0.48909113,1979.0,1978.3,0.0011]
[1772815207749,0.48909113,1978.8,1978.3,0.0011]
[1772815208047,0.48909113,1978.7,1978.1,0.0011]
[1772815208740,0.48909113,1978.7,1978.4,0.0011]
[1772815209037,0.48909113,1978.7,1977.2,5.05689001]
[1772815209038,0.48909113,1978.4,1977.1,5.05779397]
[1772815209223,0.48909113,1978.4,1978.3,0.0011]
[1772815209424,0.48909113,1978.4,1977.1,5.50843964]
[1772815209940,0.48909113,1978.2,1977.1,5.50843964]
[1772815210141,0.48909113,1978.1,1977.1,5.05779397]
[1772815212037,1.26390293,1978.0,1976.9,5.05822015]
[1772815212245,1.26390293,1978.0,1976.9,5.50886582]
[1772815212428,0.48909113,1978.1,1977.0,0.45064567]
[1772815212641,1.75293549,1978.1,1977.0,0.45064567]
[1772815213017,1.26388919,1978.1,1977.0,0.45064567]
[1772815213916,1.75298032,1978.1,1977.0,0.45064567]
[1772815214135,1.75298032,1978.1,1977.1,1.26447827]
[1772815214337,0.48909113,1978.0,1977.1,1.26447827]
[1772815214830,0.48909113,1978.0,1976.9,1.26456675]
[1772815215056,2.63212248,1977.9,1976.9,1.26456675]
[1772815215278,2.63212248,1977.9,1976.8,0.0011]
[1772815215279,0.48909113,1977.6,1976.8,0.0011]
[1772815215433,0.48909113,1977.4,1976.8,0.0011]
[1772815215840,0.48909113,1977.4,1976.7,0.0359541]
[1772815216132,0.48909113,1977.3,1976.5,0.0011]
[1772815216373,1.26438424,1977.3,1976.5,0.0011]
[1772815216570,1.75347537,1977.3,1976.5,0.0011]
[1772815216867,0.48909113,1977.2,1976.5,0.0011]
[1772815218132,0.48909113,1977.0,1976.5,0.0011]
[1772815218340,1.26458482,1977.0,1976.5,0.0011]
[1772815218632,5.54713078,1977.1,1976.5,0.0011]
[1772815218633,1.75357809,1977.1,1976.5,0.0011]
[1772815219076,0.48909113,1977.0,1976.5,0.0011]
[1772815220483,1.2646062,1976.9,1976.5,0.0011]
[1772815220665,1.75369733,1976.9,1976.6,0.0011]
[1772815221042,0.48909113,1976.9,1976.6,0.0011]
[1772815221269,1.26438217,1977.3,1976.6,0.0011]
[1772815221497,0.48909113,1977.2,1976.6,0.0011]
[1772815222362,2.33234619,1977.4,1976.6,0.45174567]
[1772815222555,2.33229015,1977.4,1976.6,0.45174567]
[1772815222967,2.33229015,1977.4,1976.6,0.0011]
[1772815223469,2.79611855,1977.4,1976.6,0.0011]
[1772815223849,2.30705664,1977.4,1976.6,0.45174567]
[1772815224570,2.30705664,1977.4,1976.7,1.26473415]
[1772815226485,1.04273727,1977.4,1976.7,1.26473415]
[1772815226684,1.04273727,1977.4,1976.7,1.71537982]
[1772815227289,1.04273727,1977.6,1976.8,0.45064567]
[1772815228579,1.2642225,1977.5,1976.9,1.2646062]
[1772815228780,2.30691314,1977.6,1976.9,1.71525187]
[1772815229171,0.48909113,1977.5,1976.6,1.71654198]
[1772815229394,0.48909113,1977.5,1976.6,0.0011]
[1772815229395,0.48909113,1977.4,1976.6,0.0011]
[1772815230077,0.48909113,1977.4,1976.6,1.26589356]
[1772815230684,1.26435037,1977.3,1976.6,0.0011]
[1772815230876,0.48909113,1977.2,1976.6,0.0011]
[1772815231902,0.47383984,1977.1,1976.6,0.0011]
[1772815232298,1.073,1977.2,1976.6,0.0011]
[1772815232670,2.30721554,1977.1,1976.6,0.0011]
[1772815233174,1.04273727,1977.1,1976.6,0.0011]
[1772815233902,0.93363672,1977.1,1976.6,0.0011]
[1772815234106,1.26522391,1977.5,1976.6,0.37599538]
[1772815234772,0.001,1977.5,1976.7,1.26473415]
[1772815235505,0.001,1977.5,1976.8,0.37489538]
[1772815235701,0.47383984,1978.0,1976.8,0.37489538]
[1772815235903,1.73778224,1978.0,1976.8,0.37489538]
[1772815236805,5.05561172,1978.2,1977.0,0.37489538]
[1772815237103,1.26377514,1978.2,1977.2,0.37489538]
[1772815237299,1.73761498,1978.2,1977.2,0.37489538]
[1772815238810,0.47383984,1978.1,1977.0,1.26447827]
[1772815239680,0.47383984,1978.1,1977.0,1.63937365]
[1772815239881,1.26377514,1978.2,1977.1,0.37489538]
[1772815240203,1.73761498,1978.2,1977.1,0.37489538]
[1772815240775,1.73761498,1978.2,1977.2,1.26441432]
[1772815241186,0.47383984,1978.1,1977.2,1.26441432]
[1772815241803,0.47383984,1978.1,1977.1,1.26441915]
[1772815242691,0.47383984,1978.1,1977.1,1.63931453]
[1772815242896,1.26390293,1978.0,1977.1,1.63931453]
[1772815243208,1.26390293,1978.0,1977.2,0.37489538]
[1772815244314,1.73774277,1978.0,1977.1,1.26441915]
[1772815245397,1.26484234,1978.1,1977.2,0.37489538]
[1772815246112,1.26484173,1978.1,1977.2,0.37489538]
[1772815246422,0.001,1978.1,1977.2,0.37489538]
[1772815246597,1.73736789,1978.6,1977.4,0.37389538]
[1772815246993,1.73736789,1978.6,1977.5,1.2642225]
[1772815247197,1.73736789,1978.6,1977.6,1.25189538]
[1772815248299,5.05374757,1978.8,1977.7,0.37389538]
[1772815248921,0.47383984,1978.7,1977.7,0.37389538]
[1772815249216,0.47383984,1978.5,1977.4,0.878]
[1772815249618,0.47383984,1978.5,1977.1,2.14247827]
[1772815250394,0.47383984,1978.5,1977.1,1.26447827]
[1772815250616,0.47383984,1978.1,1976.8,5.058559]
[1772815250792,0.47383984,1977.7,1976.7,0.0011]
[1772815251215,0.47383984,1977.5,1976.7,0.0011]
[1772815253194,0.47383984,1977.3,1976.7,0.0011]
[1772815254729,0.47383984,1977.3,1976.6,0.0011]
[1772815255426,0.46225028,1977.1,1976.6,0.0011]
[1772815255914,0.44884649,1977.1,1976.6,0.0011]
[1772815256821,2.79858009,1977.4,1976.6,0.0011]
[1772815257022,0.46225028,1977.3,1976.6,0.0011]
[1772815257326,1.26441432,1977.2,1976.7,0.0011]
[1772815258225,1.72664813,1977.3,1976.7,0.0011]
[1772815258802,0.46225028,1977.3,1976.7,0.0011]
[1772815259128,1.7266198,1977.3,1976.7,0.0011]
[1772815260133,0.46225028,1977.3,1976.7,0.0011]
[1772815260430,1.72662504,1977.3,1976.7,0.0011]
[1772815261727,0.46225028,1977.3,1976.7,0.0011]
[1772815261908,1.72661899,1977.3,1976.7,0.0011]
[1772815263230,0.46225028,1977.3,1976.7,0.0011]
[1772815263425,1.2641185,1977.7,1976.7,0.38949917]
[1772815263818,2.33606025,1977.8,1976.7,0.38949917]
[1772815264337,2.33606025,1977.8,1976.8,1.26467017]
[1772815264338,2.83511473,1977.8,1976.8,1.26467017]
[1772815264713,0.49905448,1977.7,1976.8,1.26467017]
[1772815264913,0.49905448,1977.7,1976.7,0.0011]
[1772815265135,0.49905448,1977.7,1976.7,1.26580519]
[1772815266144,0.49905448,1977.7,1976.7,1.65420435]
[1772815266447,1.76318286,1977.7,1976.7,1.65420435]
[1772815266847,0.49905448,1977.7,1976.7,1.26580519]
[1772815267146,1.76315011,1977.7,1976.8,0.38839916]
[1772815268119,0.49905448,1977.6,1976.7,1.26580519]
[1772815268427,1.76326521,1977.6,1976.7,0.0011]
[1772815269147,0.49905448,1977.5,1976.8,0.0011]
[1772815270431,1.76334091,1977.4,1976.8,0.0011]
[1772815270948,0.49905448,1977.3,1976.8,0.0011]
[1772815271951,1.073,1977.3,1976.8,0.0011]
[1772815272126,0.49905448,1977.2,1976.8,0.0011]
[1772815272560,1.26447827,1977.1,1976.8,0.0011]
[1772815272738,0.49905448,1977.2,1976.8,0.0011]
[1772815273049,2.3373527,1977.3,1976.8,0.0011]
[1772815273954,0.49905448,1977.2,1976.8,0.0011]
[1772815274628,2.33739831,1977.3,1976.8,0.0011]
[1772815275056,0.49905448,1977.2,1976.8,0.0011]
[1772815275847,0.001,1977.6,1976.8,0.38949916]
[1772815276048,0.49905448,1977.5,1976.8,0.0011]
[1772815276254,0.49905448,1977.4,1976.8,0.0011]
[1772815276427,0.49905448,1977.4,1976.7,0.0011]
[1772815276763,0.49905448,1977.1,1976.7,0.0011]
[1772815276957,0.49905448,1976.9,1976.7,0.0011]
[1772815278842,1.76372465,1976.8,1976.7,0.0011]
[1772815279365,0.49905448,1976.8,1976.7,0.0011]
[1772815281058,0.49905448,1977.1,1976.7,0.0011]
[1772815281262,1.074,1977.3,1976.7,0.0011]
[1772815281445,2.33835842,1977.3,1976.8,0.0011]
[1772815281768,2.8374129,1977.3,1976.8,0.0011]
[1772815282263,0.49905448,1977.2,1976.7,0.0011]
[1772815284446,1.76351775,1977.2,1976.7,0.0011]
[1772815284646,1.76349409,1977.2,1976.7,0.0011]
[1772815285669,0.49905448,1977.1,1976.7,0.0011]
[1772815287070,1.26454223,1977.0,1976.7,0.0011]
[1772815287640,1.76359671,1977.0,1976.7,0.0011]
[1772815288170,1.26452741,1977.1,1976.7,0.0011]
[1772815288369,5.05766384,1977.2,1976.7,0.0011]
[1772815289264,1.26441432,1977.2,1976.7,0.0011]
[1772815289468,2.83742827,1977.3,1976.7,0.0011]
[1772815289843,0.49905448,1977.2,1976.7,0.0011]
[1772815291144,0.49905448,1977.2,1976.6,0.0011]
[1772815291350,0.49905448,1977.0,1976.6,0.0011]
[1772815291665,0.49905448,1976.8,1976.6,0.0011]
[1772815293978,1.76372465,1976.8,1976.7,0.0011]
[1772815294178,0.45956973,1976.7,1976.6,0.0011]
[1772815294474,0.45956973,1976.7,1976.5,0.0011]
[1772815294475,0.45956973,1976.7,1975.9,1.26628513]
[1772815295246,0.45956973,1976.7,1975.9,0.0011]
[1772815295654,0.45956973,1976.7,1975.9,1.26634363]
[1772815295842,1.26567017,1976.8,1975.8,0.0011]
[1772815295843,0.45956973,1976.5,1975.8,0.0011]
[1772815296044,0.45956973,1976.2,1975.8,0.0011]
[1772815296344,0.45956973,1976.2,1975.1,1.26575869]
[1772815298176,0.45956973,1976.0,1975.0,1.92176566]
[1772815298375,0.45956973,1975.8,1975.0,1.26578441]
[1772815298990,0.45956973,1975.8,1974.8,1.26699938]
[1772815299275,0.45956973,1975.6,1974.8,0.0011]
[1772815300155,0.45956973,1975.4,1974.8,0.0011]
[1772815300475,0.45956973,1975.3,1974.8,0.0011]
[1772815301352,0.45956973,1975.3,1974.7,0.0011]
[1772815302088,1.081,1975.4,1974.7,0.39499916]
[1772815302374,2.34661905,1975.4,1974.8,1.26595098]
[1772815304367,2.80618878,1975.4,1974.7,0.0011]
[1772815304568,0.45956973,1975.3,1974.7,0.0011]
[1772815305157,1.72505226,1975.6,1974.7,0.39499916]
[1772815305769,0.45956973,1975.5,1974.7,0.0011]
[1772815305967,0.45956973,1975.5,1974.9,0.0011]
[1772815306374,3.24639129,1975.7,1974.9,0.0011]
[1772815306375,1.26547047,1975.6,1974.9,0.0011]
[1772815306884,0.45956973,1975.5,1974.9,0.0011]
[1772815309085,1.26556646,1975.4,1974.9,0.0011]
[1772815309377,1.72513619,1975.4,1974.9,0.0011]
[1772815309580,0.45956973,1975.2,1974.9,0.0011]
[1772815311154,1.26575869,1975.1,1974.8,0.0011]
[1772815311360,0.45956973,1975.0,1974.8,0.0011]
[1772815311555,1.083,1975.3,1974.8,0.0011]
[1772815311867,2.34867519,1975.3,1974.8,0.0011]
[1772815312050,1.083,1975.3,1974.8,0.0011]
[1772815312856,1.26555968,1975.5,1974.8,0.39609916]
[1772815313077,1.26546274,1975.6,1974.9,1.26588688]
[1772815313385,1.80377531,1975.7,1974.9,1.66088604]
[1772815313566,1.80377531,1975.7,1975.0,0.39499916]
[1772815313567,0.53839008,1975.7,1975.0,0.39499916]
[1772815313764,1.80381252,1975.7,1975.0,0.39499916]
[1772815313954,1.80381252,1975.7,1974.9,1.26588688]
[1772815313955,2.26338225,1975.7,1974.9,1.26588688]
[1772815314158,2.26338225,1975.7,1975.0,0.39499916]
[1772815314370,1.80381252,1975.7,1975.0,0.39499916]
[1772815314685,1.80381252,1975.7,1974.9,1.26588688]
[1772815314686,2.26338225,1975.7,1974.9,1.26588688]
[1772815315258,2.26338225,1975.7,1974.8,5.45964668]
[1772815316558,2.26338225,1975.7,1974.9,0.39499916]
[1772815317079,2.26338225,1975.7,1974.8,0.0011]
[1772815317080,0.49251934,1975.6,1974.8,0.0011]
[1772815317281,0.49251934,1975.4,1974.8,0.0011]
[1772815317683,1.2655024,1975.5,1974.8,0.39609916]
[1772815317888,1.2655024,1975.5,1974.9,0.0011]
[1772815318258,1.26647747,1975.6,1974.9,0.0011]
[1772815319066,0.001,1975.6,1974.9,0.39609916]
[1772815319280,0.53839008,1975.7,1975.1,0.39499916]
[1772815319997,1.80376579,1975.7,1975.0,1.26582278]
[1772815320170,2.29629056,1975.7,1975.0,1.26582278]
[1772815320367,0.53839008,1975.7,1975.1,0.39399916]
[1772815320968,1.80377441,1975.7,1975.0,1.26582278]
[1772815321169,2.29629375,1975.7,1975.0,1.26582278]
[1772815321701,0.46742001,1975.6,1974.9,0.0011]
[1772815321898,0.46742001,1975.6,1974.9,1.26698376]
[1772815322074,0.46742001,1975.6,1974.9,0.0011]
[1772815322274,0.46742001,1975.6,1974.9,1.26697801]
[1772815323203,0.46742001,1975.6,1974.9,0.0011]
[1772815323499,0.46742001,1975.4,1974.8,0.0011]
[1772815323699,0.46742001,1975.2,1974.8,0.0011]
[1772815324971,0.46742001,1975.2,1974.7,0.0011]
[1772815325504,0.46742001,1975.0,1974.7,0.0011]
[1772815325684,0.46742001,1974.8,1974.7,0.0011]
[1772815326197,1.086,1974.8,1974.7,0.0011]
[1772815327091,1.55342001,1974.8,1974.7,0.0011]
[1772815328105,1.26601509,1974.7,1974.6,0.0011]
[1772815328595,6.61731448,1974.8,1974.6,0.0011]
[1772815328596,2.3519755,1974.8,1974.6,0.0011]
[1772815328805,0.46742001,1974.7,1974.6,0.0011]
[1772815329885,0.46742001,1974.7,1973.7,1.89823139]
[1772815330435,0.46742001,1974.7,1974.5,0.0011]
[1772815330436,1.73349921,1974.6,1974.5,0.0011]
[1772815330614,0.46742001,1974.5,1973.7,0.23652561]
[1772815330823,0.46742001,1974.3,1973.4,4.19721408]
[1772815331000,1.088,1974.4,1973.4,4.19721408]
[1772815331001,1.73349921,1974.6,1973.5,0.39318848]
[1772815331303,1.55542001,1974.5,1973.5,0.39318848]
[1772815331673,0.46742001,1974.4,1973.5,0.39318848]
[1772815332393,1.26627158,1974.3,1973.6,1.26672071]
[1772815332991,0.46742001,1974.2,1973.5,1.26675198]
[1772815333186,0.46742001,1974.2,1973.4,3.80399571]
[1772815333593,1.26627158,1974.3,1973.4,3.80399571]
[1772815333594,1.26627158,1974.3,1973.5,0.39318848]
[1772815334288,1.09,1974.3,1973.6,1.26672071]
[1772815334588,1.09,1974.3,1973.6,1.65990919]
[1772815334787,1.55742001,1974.3,1973.6,1.26672071]
[1772815334988,0.46742001,1974.2,1973.4,3.80397955]
[1772815336506,1.26639987,1974.1,1973.4,3.80397955]
[1772815337691,1.73381988,1974.1,1973.4,3.80397955]
[1772815338093,1.73381988,1974.1,1972.8,5.0698765]
[1772815338094,0.46742001,1974.0,1972.8,0.0011]
[1772815338307,0.46742001,1974.0,1972.9,1.26717015]
[1772815338519,1.7339482,1973.9,1973.0,0.39318848]
[1772815338809,1.091,1973.8,1973.0,0.39318848]
[1772815339121,1.55842001,1973.8,1973.0,0.39318848]
[1772815339410,5.06563844,1974.1,1973.0,0.39318848]
[1772815339411,1.73386849,1974.1,1973.0,0.39318848]
[1772815340084,0.46742001,1974.1,1973.1,0.87]
[1772815340291,0.46742001,1974.2,1973.2,0.39318848]
[1772815340528,1.73381988,1974.1,1973.3,1.26691329]
[1772815341386,1.26638233,1974.2,1973.4,0.39318848]
[1772815341816,0.46742001,1974.4,1973.5,0.39428848]
[1772815342091,1.73366406,1974.4,1973.5,0.39428848]
[1772815342809,1.73466406,1974.4,1973.6,1.26672071]
[1772815343022,1.73466406,1974.4,1973.6,1.65990919]
[1772815344312,0.001,1974.4,1973.7,0.39318848]
[1772815344813,0.001,1974.4,1973.8,1.26659235]
[1772815345311,0.46842001,1974.4,1973.6,1.26672071]
[1772815346021,0.46842001,1974.4,1973.5,1.26784901]
[1772815346718,0.46842001,1974.4,1973.5,1.66103749]
[1772815347416,1.7346648,1974.4,1973.6,0.39318848]
[1772815347805,1.73463977,1974.4,1973.6,0.39318848]
[1772815348193,0.46742001,1974.3,1973.5,1.26784901]
[1772815348393,0.46742001,1974.3,1973.5,1.26787724]
[1772815348394,0.46742001,1974.2,1973.5,1.26787724]
[1772815348705,1.092,1974.3,1973.6,0.39318848]
[1772815349028,1.26720964,1974.4,1973.6,0.39318848]
[1772815349179,0.001,1974.4,1973.6,0.39318848]
[1772815349382,0.001,1974.4,1973.7,1.26665653]
[1772815349587,1.26606654,1974.7,1973.9,0.39218848]
[1772815349796,1.092,1974.8,1973.9,0.39218848]
[1772815350010,0.46742001,1974.9,1973.9,0.39218848]
[1772815350213,0.30959999,1975.0,1973.9,0.39218848]
[1772815350429,0.30959999,1975.0,1973.7,1.26665653]
[1772815350430,0.30959999,1975.0,1974.3,0.39218848]
[1772815350615,1.57543856,1975.0,1974.3,0.39218848]
[1772815350816,0.30959999,1975.0,1974.3,0.39218848]
[1772815351022,1.57543316,1975.0,1974.3,0.39218848]
[1772815351398,0.46742001,1974.9,1974.2,2.48638932]
[1772815351597,0.46742001,1974.9,1974.2,4.14491027]
[1772815351801,1.57543316,1975.0,1974.2,4.14491027]
[1772815352208,1.57542772,1975.0,1974.2,4.14491027]
[1772815352507,1.57542641,1975.0,1974.2,4.14491027]
[1772815352712,0.45756977,1974.9,1974.2,3.75272179]
[1772815352907,0.45756977,1974.9,1974.2,1.26633247]
[1772815353321,0.45756977,1974.9,1974.0,1.26646403]
[1772815353322,1.26595098,1974.8,1974.0,1.26646403]
[1772815353517,0.45756977,1974.7,1974.0,1.26646403]
[1772815353732,0.45756977,1974.7,1973.7,5.06644617]
[1772815354031,0.45756977,1974.7,1973.7,1.65884501]
[1772815354328,0.45756977,1974.7,1973.8,0.39218848]
[1772815354524,1.54856977,1974.7,1973.8,0.39218848]
[1772815355025,1.091,1974.7,1973.8,0.39218848]
[1772815355334,0.45756977,1974.6,1973.7,1.26665653]
[1772815355705,1.26614332,1974.5,1973.7,1.65884501]
[1772815356521,1.2669524,1974.8,1973.8,0.39218848]
[1772815357044,0.001,1974.8,1973.8,0.39218848]
[1772815357259,1.26695939,1974.8,1973.8,0.39218848]
[1772815357415,0.001,1974.8,1974.0,0.39218848]
[1772815357748,0.001,1974.8,1974.3,1.26627158]
[1772815359746,0.001,1974.8,1974.0,1.26646403]
[1772815359747,1.72358486,1974.7,1974.0,1.26646403]
[1772815360623,0.45756977,1974.6,1973.6,1.65886566]
[1772815360821,0.45756977,1974.6,1973.6,1.26667718]
[1772815361414,0.45756977,1974.6,1973.5,1.26783282]
[1772815361738,0.45756977,1974.4,1973.5,0.0011]
[1772815362846,0.45756977,1974.3,1973.5,0.0011]
[1772815364644,1.72386268,1974.3,1973.5,0.0011]
[1772815364858,1.72358486,1974.7,1973.5,0.39328848]
[1772815365026,0.45756977,1974.6,1973.5,0.39328848]
[1772815365226,2.35401509,1974.7,1973.7,0.39218848]
[1772815365528,2.35401509,1974.7,1973.6,0.14948499]
[1772815365529,0.001,1974.8,1973.9,0.39218848]
[1772815365723,1.26695978,1974.8,1973.9,0.39218848]
[1772815366556,1.72452955,1974.8,1973.9,0.39218848]
[1772815366851,0.45756977,1974.7,1974.0,1.26646403]
[1772815367227,0.45756977,1974.7,1973.9,1.26648799]
[1772815367425,0.45756977,1974.7,1973.8,1.26659235]
[1772815367625,0.45756977,1974.5,1973.6,0.0011]
[1772815367824,0.45756977,1974.5,1973.6,1.26781466]
[1772815368634,1.72377722,1974.4,1973.6,0.0011]
[1772815368943,1.26616891,1974.5,1973.6,0.39328848]
[1772815369149,0.45756977,1974.5,1973.6,0.39328848]
[1772815369450,1.72371561,1974.5,1973.6,0.39328848]
[1772815370445,0.45756977,1974.4,1973.6,0.39328848]
[1772815370629,0.45756977,1974.4,1973.6,0.0011]
[1772815371558,1.26627158,1974.3,1973.6,0.0011]
[1772815372055,0.45756977,1974.4,1973.6,0.39328848]
[1772815372231,1.26612805,1974.6,1973.6,0.39328848]
[1772815372558,1.72369782,1974.6,1973.6,0.39328848]
[1772815373457,0.001,1974.8,1973.8,0.39218848]
[1772815373665,1.57547094,1975.0,1974.1,2.51198166]
[1772815373963,1.57547094,1975.0,1974.2,0.39218848]
[1772815375061,0.45756977,1974.9,1974.2,0.39218848]
[1772815376048,1.7234601,1974.9,1974.3,1.26627158]
[1772815376837,1.7234601,1974.9,1974.2,1.26632526]
[1772815378169,0.49852565,1974.6,1973.6,0.0011]
[1772815378470,0.49852565,1974.6,1973.7,0.0011]
[1772815380051,1.26614332,1974.5,1973.7,0.0011]
[1772815380369,1.26614332,1974.5,1973.8,0.39218848]
[1772815380976,1.26605557,1974.7,1973.8,0.39218848]
[1772815381267,0.49852565,1974.9,1973.9,0.39218848]
[1772815381582,0.49852565,1975.0,1973.8,0.38434679]
[1772815381745,0.49852565,1975.0,1973.7,2.13975653]
[1772815381746,0.49852565,1975.0,1973.9,0.53383178]
[1772815381948,0.49852565,1975.0,1973.9,0.38434679]
[1772815382145,0.46827183,1974.8,1974.0,1.26646403]
[1772815382479,1.78265705,1975.3,1974.3,0.38434679]
[1772815382774,0.46827183,1975.2,1974.3,0.38434679]
[1772815384070,1.31438522,1975.3,1974.3,0.38434679]
[1772815384242,1.26655373,1975.5,1974.5,0.46519963]
[1772815386971,1.73482556,1975.5,1974.6,1.73127883]
[1772815387378,1.73482556,1975.5,1974.7,0.46519963]
[1772815387755,0.46827183,1975.4,1974.6,1.2660792]
[1772815389787,0.46827183,1975.2,1974.5,1.26614332]
[1772815390083,1.26563053,1975.3,1974.5,1.73134295]